{"text_format":"1","workbook":"xlsx","n_sheets":1,"sheets":["W1"],"not_rendered":{"charts":0,"images":0,"macros":1,"external_links":0,"defined_names":3,"comments":0,"pivot_tables":0},"unopened":[],"bounds":{"document_bytes":16777216,"sheet_cells":100000,"rows_first":2000,"rows_last":500,"rows_between":2000,"halvings":0,"cell_chars":16384,"cell_head_chars":4096},"cells_cut":0,"cells_raw":0,"read":"whole","date_system":"1900"}

{"sheet":"W1","index":0,"n_rows":186,"n_cols":30,"rows_kept":186,"cut":false,"hidden":false,"merged":[[1,1,1,4]]}
[]
[null,{"$f":"TEXT(G2,\"dd\")&\" \"&\"A\"&\" \"&TEXT(M2,\"dd/mm/aaaa\")","v":"02 A 08/01/2023"},null,null,null,"W1","2023-01-02",{"$f":"G2+1","v":"2023-01-03"},{"$f":"H2+1","v":"2023-01-04"},"2023-01-05","2023-01-06","2023-01-07",{"$f":"L2+1","v":"2023-01-08"},null,null,null,"ALIM+HOSP "]
[]
[null,"EMPRESA","C. FORNEC.","NOME","COD. C.C","TEXTO C.C","SEG","TER","QUA","QUI","SEX","SAB","DOM","TOTAL","DESCRIÇÃO","OBSERVAÇÃO",null,null,null,null,null,"C. CUSTO","DESCRIÇÃO C. CUSTO","CONTA CONTÁBIL","DESCRIÇÃO C. CONTÁBIL"," VALOR ","HISTÓRICO","FORNECEDOR","LJ","DESCRIÇÃO"]
[null,null,null,null,null,null,60,{"$f":"G5","v":60},{"$f":"H5","v":60},60,null,0,0,{"$f":"SUM(G5:M5)","v":240},"ALIM+HOSP 02 A 05/01",null,null,null,null,null,null,{"$f":"E5","v":0},null,41104002,"DESPESAS DE VIAGEM ( DIARIA )",{"$f":"N5","v":240},{"$f":"D5","v":0},{"$f":"C5","v":0},"01",{"$f":"O5","v":"ALIM+HOSP 02 A 05/01"}]
[null,null,null,null,null,null,null,{"$f":"G6","v":0},0,0,0,0,0,{"$f":"SUM(G6:M6)","v":0},null,null,null,null,null,null,null,{"$f":"E6","v":0},null,41104002,"DESPESAS DE VIAGEM ( DIARIA )",{"$f":"N6","v":0},{"$f":"D6","v":0},{"$f":"C6","v":0},"01",{"$f":"O6","v":0}]
[null,null,null,null,null,null,null,{"$f":"G7","v":0},0,0,0,0,0,0,null,null,null,null,null,null,null,0,null,41104002,"DESPESAS DE VIAGEM ( DIARIA )",0,0,0,"01",0]
[null,null,null,null,null,null,null,0,0,0,0,0,0,0,null,null,null,null,null,null,null,0,null,41104002,"DESPESAS DE VIAGEM ( DIARIA )",0,0,0,"01",0]
[null,null,null,null,null,null,null,0,0,0,0,0,0,0,null,null,null,null,null,null,null,0,null,41104002,"DESPESAS DE VIAGEM ( DIARIA )",0,0,0,"01",0]
[null,null,null,null,null,null,null,0,0,0,0,0,0,0,null,null,null,null,null,null,null,0,null,41104002,"DESPESAS DE VIAGEM ( DIARIA )",0,0,0,"01",0]
[null,null,null,null,null,null,null,0,0,0,0,0,0,0,null,null,null,null,null,null,null,0,null,41104002,"DESPESAS DE VIAGEM ( DIARIA )",0,0,0,"01",0]
[null,null,null,null,null,null,null,0,0,0,0,0,0,0,null,null,null,null,null,null,null,0,null,41104002,"DESPESAS DE VIAGEM ( DIARIA )",0,0,0,"01",0]
[null,null,null,null,null,null,null,0,0,0,0,0,0,0,null,null,null,null,null,null,null,0,null,41104002,"DESPESAS DE VIAGEM ( DIARIA )",0,0,0,"01",0]
[null,null,null,null,null,null,null,0,0,0,0,0,0,0,null,null,null,null,null,null,null,0,null,41104002,"DESPESAS DE VIAGEM ( DIARIA )",0,0,0,"01",0]
[null,null,null,null,null,null,null,0,0,0,0,0,0,0,null,null,null,null,null,null,null,0,null,41104002,"DESPESAS DE VIAGEM ( DIARIA )",0,0,0,"01",0]
[null,null,null,null,null,null,null,0,0,0,0,0,0,0,null,null,null,null,null,null,null,0,null,41104002,"DESPESAS DE VIAGEM ( DIARIA )",0,0,0,"01",0]
[null,null,null,null,null,null,null,0,0,0,0,0,0,0,null,null,null,null,null,null,null,0,null,41104002,"DESPESAS DE VIAGEM ( DIARIA )",0,0,0,"01",0]
[null,null,null,null,null,null,null,0,0,0,0,0,0,0,null,null,null,null,null,null,null,0,null,41104002,"DESPESAS DE VIAGEM ( DIARIA )",0,0,0,"01",0]
[null,null,null,null,null,null,null,0,0,0,0,0,0,0,null,null,null,null,null,null,null,0,null,41104002,"DESPESAS DE VIAGEM ( DIARIA )",0,0,0,"01",0]
[null,null,null,null,null,null,null,0,0,0,0,0,0,0,null,null,null,null,null,null,null,0,null,41104002,"DESPESAS DE VIAGEM ( DIARIA )",0,0,0,"01",0]
[null,null,null,null,null,null,null,0,0,0,0,0,0,0,null,null,null,null,null,null,null,0,null,41104002,"DESPESAS DE VIAGEM ( DIARIA )",0,0,0,"01",0]
[null,null,null,null,null,null,null,0,0,0,0,0,0,0,null,null,null,null,null,null,null,0,null,41104002,"DESPESAS DE VIAGEM ( DIARIA )",0,0,0,"01",0]
[null,null,null,null,null,null,null,{"$f":"G23","v":0},0,0,0,0,0,0,null,null,null,null,null,null,null,0,null,41104002,"DESPESAS DE VIAGEM ( DIARIA )",0,0,0,"01",0]
[null,null,null,null,null,null,null,0,0,0,0,0,0,0,null,null,null,null,null,null,null,0,null,41104002,"DESPESAS DE VIAGEM ( DIARIA )",0,0,0,"01",0]
[null,null,null,null,null,null,null,0,0,0,0,0,0,0,null,null,null,null,null,null,null,0,null,41104002,"DESPESAS DE VIAGEM ( DIARIA )",0,0,0,"01",0]
[null,null,null,null,null,null,null,0,0,0,0,0,0,0,null,null,null,null,null,null,null,0,null,41104002,"DESPESAS DE VIAGEM ( DIARIA )",0,0,0,"01",0]
[null,null,null,null,null,null,null,0,0,0,0,0,0,0,null,null,null,null,null,null,null,0,null,41104002,"DESPESAS DE VIAGEM ( DIARIA )",0,0,0,"01",0]
[null,null,null,null,null,null,null,0,0,0,0,0,0,0,null,null,null,null,null,null,null,0,null,41104002,"DESPESAS DE VIAGEM ( DIARIA )",0,0,0,"01",0]
[null,null,null,null,null,null,null,0,0,0,0,0,0,0,null,null,null,null,null,null,null,0,null,41104002,"DESPESAS DE VIAGEM ( DIARIA )",0,0,0,"01",0]
[null,null,null,null,null,null,null,0,0,0,0,0,0,0,null,null,null,null,null,null,null,0,null,41104002,"DESPESAS DE VIAGEM ( DIARIA )",0,0,0,"01",0]
[null,null,null,null,null,null,null,0,0,0,0,0,0,0,null,null,null,null,null,null,null,0,null,41104002,"DESPESAS DE VIAGEM ( DIARIA )",0,0,0,"01",0]
[null,null,null,null,null,null,null,0,0,0,0,0,0,0,null,null,null,null,null,null,null,0,null,41104002,"DESPESAS DE VIAGEM ( DIARIA )",0,0,0,"01",0]
[null,null,null,null,null,null,null,0,0,0,0,0,0,0,null,null,null,null,null,null,null,0,null,41104002,"DESPESAS DE VIAGEM ( DIARIA )",0,0,0,"01",0]
[null,null,null,null,null,null,null,0,0,0,0,0,0,0,null,null,null,null,null,null,null,0,null,41104002,"DESPESAS DE VIAGEM ( DIARIA )",0,0,0,"01",0]
[null,null,null,null,null,null,null,0,0,0,0,0,0,0,null,null,null,null,null,null,null,0,null,41104002,"DESPESAS DE VIAGEM ( DIARIA )",0,0,0,"01",0]
[null,null,null,null,null,null,null,0,0,0,0,0,0,0,null,null,null,null,null,null,null,0,null,41104002,"DESPESAS DE VIAGEM ( DIARIA )",0,0,0,"01",0]
[null,null,null,null,null,null,null,0,0,0,0,0,0,0,null,null,null,null,null,null,null,0,null,41104002,"DESPESAS DE VIAGEM ( DIARIA )",0,0,0,"01",0]
[null,null,null,null,null,null,null,0,0,0,0,0,0,0,null,null,null,null,null,null,null,0,null,41104002,"DESPESAS DE VIAGEM ( DIARIA )",0,0,0,"01",0]
[null,null,null,null,null,null,null,{"$f":"G39","v":0},0,0,0,0,0,0,null,null,null,null,null,null,null,0,null,41104002,"DESPESAS DE VIAGEM ( DIARIA )",0,0,0,"01",0]
[null,null,null,null,null,null,null,0,0,0,0,0,0,0,null,null,null,null,null,null,null,0,null,41104002,"DESPESAS DE VIAGEM ( DIARIA )",0,0,0,"01",0]
[null,null,null,null,null,null,null,0,0,0,0,0,0,0,null,null,null,null,null,null,null,0,null,41104002,"DESPESAS DE VIAGEM ( DIARIA )",0,0,0,"01",0]
[null,null,null,null,null,null,null,0,0,0,0,0,0,0,null,null,null,null,null,null,null,0,null,41104002,"DESPESAS DE VIAGEM ( DIARIA )",0,0,0,"01",0]
[null,null,null,null,null,null,null,0,0,0,0,0,0,0,null,null,null,null,null,null,null,0,null,41104002,"DESPESAS DE VIAGEM ( DIARIA )",0,0,0,"01",0]
[null,null,null,null,null,null,null,0,0,0,0,0,0,0,null,null,null,null,null,null,null,0,null,41104002,"DESPESAS DE VIAGEM ( DIARIA )",0,0,0,"01",0]
[null,null,null,null,null,null,null,0,0,0,0,0,0,0,null,null,null,null,null,null,null,0,null,41104002,"DESPESAS DE VIAGEM ( DIARIA )",0,0,0,"01",0]
[null,null,null,null,null,null,null,0,0,0,0,0,0,0,null,null,null,null,null,null,null,0,null,41104002,"DESPESAS DE VIAGEM ( DIARIA )",0,0,0,"01",0]
[null,null,null,null,null,null,null,0,0,0,0,0,0,0,null,null,null,null,null,null,null,0,null,41104002,"DESPESAS DE VIAGEM ( DIARIA )",0,0,0,"01",0]
[null,null,null,null,null,null,null,0,0,0,0,0,0,0,null,null,null,null,null,null,null,0,null,41104002,"DESPESAS DE VIAGEM ( DIARIA )",0,0,0,"01",0]
[null,null,null,null,null,null,null,0,0,0,0,0,0,0,null,null,null,null,null,null,null,0,null,41104002,"DESPESAS DE VIAGEM ( DIARIA )",0,0,0,"01",0]
[null,null,null,null,null,null,null,0,0,0,0,0,0,0,null,null,null,null,null,null,null,0,null,41104002,"DESPESAS DE VIAGEM ( DIARIA )",0,0,0,"01",0]
[null,null,null,null,null,null,null,0,0,0,0,0,0,0,null,null,null,null,null,null,null,0,null,41104002,"DESPESAS DE VIAGEM ( DIARIA )",0,0,0,"01",0]
[null,null,null,null,null,null,null,0,0,0,0,0,0,0,null,null,null,null,null,null,null,0,null,41104002,"DESPESAS DE VIAGEM ( DIARIA )",0,0,0,"01",0]
[null,null,null,null,null,null,null,0,0,0,0,0,0,0,null,null,null,null,null,null,null,0,null,41104002,"DESPESAS DE VIAGEM ( DIARIA )",0,0,0,"01",0]
[null,null,null,null,null,null,null,0,0,0,0,0,0,0,null,null,null,null,null,null,null,0,null,41104002,"DESPESAS DE VIAGEM ( DIARIA )",0,0,0,"01",0]
[null,null,null,null,null,null,null,{"$f":"G55","v":0},0,0,0,0,0,0,null,null,null,null,null,null,null,0,null,41104002,"DESPESAS DE VIAGEM ( DIARIA )",0,0,0,"01",0]
[null,null,null,null,null,null,null,0,0,0,0,0,0,0,null,null,null,null,null,null,null,0,null,41104002,"DESPESAS DE VIAGEM ( DIARIA )",0,0,0,"01",0]
[null,null,null,null,null,null,null,0,0,0,0,0,0,0,null,null,null,null,null,null,null,0,null,41104002,"DESPESAS DE VIAGEM ( DIARIA )",0,0,0,"01",0]
[null,null,null,null,null,null,null,0,0,0,0,0,0,0,null,null,null,null,null,null,null,0,null,41104002,"DESPESAS DE VIAGEM ( DIARIA )",0,0,0,"01",0]
[null,null,null,null,null,null,null,0,0,0,0,0,0,0,null,null,null,null,null,null,null,0,null,41104002,"DESPESAS DE VIAGEM ( DIARIA )",0,0,0,"01",0]
[null,null,null,null,null,null,null,0,0,0,0,0,0,0,null,null,null,null,null,null,null,0,null,41104002,"DESPESAS DE VIAGEM ( DIARIA )",0,0,0,"01",0]
[null,null,null,null,null,null,null,0,0,0,0,0,0,0,null,null,null,null,null,null,null,0,null,41104002,"DESPESAS DE VIAGEM ( DIARIA )",0,0,0,"01",0]
[null,null,null,null,null,null,null,0,0,0,0,0,0,0,null,null,null,null,null,null,null,0,null,41104002,"DESPESAS DE VIAGEM ( DIARIA )",0,0,0,"01",0]
[null,null,null,null,null,null,null,0,0,0,0,0,0,0,null,null,null,null,null,null,null,0,null,41104002,"DESPESAS DE VIAGEM ( DIARIA )",0,0,0,"01",0]
[null,null,null,null,null,null,null,0,0,0,0,0,0,0,null,null,null,null,null,null,null,0,null,41104002,"DESPESAS DE VIAGEM ( DIARIA )",0,0,0,"01",0]
[null,null,null,null,null,null,null,0,0,0,0,0,0,0,null,null,null,null,null,null,null,0,null,41104002,"DESPESAS DE VIAGEM ( DIARIA )",0,0,0,"01",0]
[null,null,null,null,null,null,null,0,0,0,0,0,0,0,null,null,null,null,null,null,null,0,null,41104002,"DESPESAS DE VIAGEM ( DIARIA )",0,0,0,"01",0]
[null,null,null,null,null,null,null,0,0,0,0,0,0,0,null,null,null,null,null,null,null,0,null,41104002,"DESPESAS DE VIAGEM ( DIARIA )",0,0,0,"01",0]
[null,null,null,null,null,null,null,0,0,0,0,0,0,0,null,null,null,null,null,null,null,0,null,41104002,"DESPESAS DE VIAGEM ( DIARIA )",0,0,0,"01",0]
[null,null,null,null,null,null,null,0,0,0,0,0,0,0,null,null,null,null,null,null,null,0,null,41104002,"DESPESAS DE VIAGEM ( DIARIA )",0,0,0,"01",0]
[null,null,null,null,null,null,null,0,0,0,0,0,0,{"$f":"SUM(G70:M70)","v":0},null,null,null,null,null,null,null,{"$f":"E70","v":0},null,41104002,"DESPESAS DE VIAGEM ( DIARIA )",{"$f":"N70","v":0},{"$f":"D70","v":0},{"$f":"C70","v":0},"01",{"$f":"O70","v":0}]
[null,null,null,null,null,null,null,{"$f":"G71","v":0},0,0,0,0,0,0,null,null,null,null,null,null,null,0,null,41104002,"DESPESAS DE VIAGEM ( DIARIA )",0,0,0,"01",0]
[null,null,null,null,null,null,null,0,0,0,0,0,0,0,null,null,null,null,null,null,null,0,null,41104002,"DESPESAS DE VIAGEM ( DIARIA )",0,0,0,"01",0]
[null,null,null,null,null,null,null,0,0,0,0,0,0,0,null,null,null,null,null,null,null,0,null,41104002,"DESPESAS DE VIAGEM ( DIARIA )",0,0,0,"01",0]
[null,null,null,null,null,null,null,0,0,0,0,0,0,0,null,null,null,null,null,null,null,0,null,41104002,"DESPESAS DE VIAGEM ( DIARIA )",0,0,0,"01",0]
[null,null,null,null,null,null,null,0,0,0,0,0,0,0,null,null,null,null,null,null,null,0,null,41104002,"DESPESAS DE VIAGEM ( DIARIA )",0,0,0,"01",0]
[null,null,null,null,null,null,null,0,0,0,0,0,0,0,null,null,null,null,null,null,null,0,null,41104002,"DESPESAS DE VIAGEM ( DIARIA )",0,0,0,"01",0]
[null,null,null,null,null,null,null,0,0,0,0,0,0,0,null,null,null,null,null,null,null,0,null,41104002,"DESPESAS DE VIAGEM ( DIARIA )",0,0,0,"01",0]
[null,null,null,null,null,null,null,0,0,0,0,0,0,0,null,null,null,null,null,null,null,0,null,41104002,"DESPESAS DE VIAGEM ( DIARIA )",0,0,0,"01",0]
[null,null,null,null,null,null,null,0,0,0,0,0,0,0,null,null,null,null,null,null,null,0,null,41104002,"DESPESAS DE VIAGEM ( DIARIA )",0,0,0,"01",0]
[null,null,null,null,null,null,null,0,0,0,0,0,0,0,null,null,null,null,null,null,null,0,null,41104002,"DESPESAS DE VIAGEM ( DIARIA )",0,0,0,"01",0]
[null,null,null,null,null,null,null,0,0,0,0,0,0,0,null,null,null,null,null,null,null,0,null,41104002,"DESPESAS DE VIAGEM ( DIARIA )",0,0,0,"01",0]
[null,null,null,null,null,null,null,0,0,0,0,0,0,0,null,null,null,null,null,null,null,0,null,41104002,"DESPESAS DE VIAGEM ( DIARIA )",0,0,0,"01",0]
[null,null,null,null,null,null,null,0,0,0,0,0,0,0,null,null,null,null,null,null,null,0,null,41104002,"DESPESAS DE VIAGEM ( DIARIA )",0,0,0,"01",0]
[null,null,null,null,null,null,null,0,0,0,0,0,0,0,null,null,null,null,null,null,null,0,null,41104002,"DESPESAS DE VIAGEM ( DIARIA )",0,0,0,"01",0]
[null,null,null,null,null,null,null,0,0,0,0,0,0,0,null,null,null,null,null,null,null,0,null,41104002,"DESPESAS DE VIAGEM ( DIARIA )",0,0,0,"01",0]
[null,null,null,null,null,null,null,0,0,0,0,0,0,0,null,null,null,null,null,null,null,0,null,41104002,"DESPESAS DE VIAGEM ( DIARIA )",0,0,0,"01",0]
[null,null,null,null,null,null,null,{"$f":"G87","v":0},0,0,0,0,0,0,null,null,null,null,null,null,null,0,null,41104002,"DESPESAS DE VIAGEM ( DIARIA )",0,0,0,"01",0]
[null,null,null,null,null,null,null,0,0,0,0,0,0,0,null,null,null,null,null,null,null,0,null,41104002,"DESPESAS DE VIAGEM ( DIARIA )",0,0,0,"01",0]
[null,null,null,null,null,null,null,0,0,0,0,0,0,0,null,null,null,null,null,null,null,0,null,41104002,"DESPESAS DE VIAGEM ( DIARIA )",0,0,0,"01",0]
[null,null,null,null,null,null,null,0,0,0,0,0,0,0,null,null,null,null,null,null,null,0,null,41104002,"DESPESAS DE VIAGEM ( DIARIA )",0,0,0,"01",0]
[null,null,null,null,null,null,null,0,0,0,0,0,0,0,null,null,null,null,null,null,null,0,null,41104002,"DESPESAS DE VIAGEM ( DIARIA )",0,0,0,"01",0]
[null,null,null,null,null,null,null,0,0,0,0,0,0,0,null,null,null,null,null,null,null,0,null,41104002,"DESPESAS DE VIAGEM ( DIARIA )",0,0,0,"01",0]
[null,null,null,null,null,null,null,0,0,0,0,0,0,0,null,null,null,null,null,null,null,0,null,41104002,"DESPESAS DE VIAGEM ( DIARIA )",0,0,0,"01",0]
[null,null,null,null,null,null,null,0,0,0,0,0,0,0,null,null,null,null,null,null,null,0,null,41104002,"DESPESAS DE VIAGEM ( DIARIA )",0,0,0,"01",0]
[null,null,null,null,null,null,null,0,0,0,0,0,0,0,null,null,null,null,null,null,null,0,null,41104002,"DESPESAS DE VIAGEM ( DIARIA )",0,0,0,"01",0]
[null,null,null,null,null,null,null,0,0,0,0,0,0,0,null,null,null,null,null,null,null,0,null,41104002,"DESPESAS DE VIAGEM ( DIARIA )",0,0,0,"01",0]
[null,null,null,null,null,null,null,0,0,0,0,0,0,0,null,null,null,null,null,null,null,0,null,41104002,"DESPESAS DE VIAGEM ( DIARIA )",0,0,0,"01",0]
[null,null,null,null,null,null,null,0,0,0,0,0,0,0,null,null,null,null,null,null,null,0,null,41104002,"DESPESAS DE VIAGEM ( DIARIA )",0,0,0,"01",0]
[null,null,null,null,null,null,null,0,0,0,0,0,0,0,null,null,null,null,null,null,null,0,null,41104002,"DESPESAS DE VIAGEM ( DIARIA )",0,0,0,"01",0]
[null,null,null,null,null,null,null,0,0,0,0,0,0,0,null,null,null,null,null,null,null,0,null,41104002,"DESPESAS DE VIAGEM ( DIARIA )",0,0,0,"01",0]
[null,null,null,null,null,null,null,0,0,0,0,0,0,0,null,null,null,null,null,null,null,0,null,41104002,"DESPESAS DE VIAGEM ( DIARIA )",0,0,0,"01",0]
[null,null,null,null,null,null,null,0,0,0,0,0,0,0,null,null,null,null,null,null,null,0,null,41104002,"DESPESAS DE VIAGEM ( DIARIA )",0,0,0,"01",0]
[null,null,null,null,null,null,null,{"$f":"G103","v":0},0,0,0,0,0,0,null,null,null,null,null,null,null,0,null,41104002,"DESPESAS DE VIAGEM ( DIARIA )",0,0,0,"01",0]
[null,null,null,null,null,null,null,0,0,0,0,0,0,0,null,null,null,null,null,null,null,0,null,41104002,"DESPESAS DE VIAGEM ( DIARIA )",0,0,0,"01",0]
[null,null,null,null,null,null,null,0,0,0,0,0,0,0,null,null,null,null,null,null,null,0,null,41104002,"DESPESAS DE VIAGEM ( DIARIA )",0,0,0,"01",0]
[null,null,null,null,null,null,null,0,0,0,0,0,0,0,null,null,null,null,null,null,null,0,null,41104002,"DESPESAS DE VIAGEM ( DIARIA )",0,0,0,"01",0]
[null,null,null,null,null,null,null,0,0,0,0,0,0,0,null,null,null,null,null,null,null,0,null,41104002,"DESPESAS DE VIAGEM ( DIARIA )",0,0,0,"01",0]
[null,null,null,null,null,null,null,0,0,0,0,0,0,0,null,null,null,null,null,null,null,0,null,41104002,"DESPESAS DE VIAGEM ( DIARIA )",0,0,0,"01",0]
[null,null,null,null,null,null,null,0,0,0,0,0,0,0,null,null,null,null,null,null,null,0,null,41104002,"DESPESAS DE VIAGEM ( DIARIA )",0,0,0,"01",0]
[null,null,null,null,null,null,null,0,0,0,0,0,0,0,null,null,null,null,null,null,null,0,null,41104002,"DESPESAS DE VIAGEM ( DIARIA )",0,0,0,"01",0]
[null,null,null,null,null,null,null,0,0,0,0,0,0,0,null,null,null,null,null,null,null,0,null,41104002,"DESPESAS DE VIAGEM ( DIARIA )",0,0,0,"01",0]
[null,null,null,null,null,null,null,0,0,0,0,0,0,0,null,null,null,null,null,null,null,0,null,41104002,"DESPESAS DE VIAGEM ( DIARIA )",0,0,0,"01",0]
[null,null,null,null,null,null,null,0,0,0,0,0,0,0,null,null,null,null,null,null,null,0,null,41104002,"DESPESAS DE VIAGEM ( DIARIA )",0,0,0,"01",0]
[null,null,null,null,null,null,null,0,0,0,0,0,0,0,null,null,null,null,null,null,null,0,null,41104002,"DESPESAS DE VIAGEM ( DIARIA )",0,0,0,"01",0]
[null,null,null,null,null,null,null,0,0,0,0,0,0,0,null,null,null,null,null,null,null,0,null,41104002,"DESPESAS DE VIAGEM ( DIARIA )",0,0,0,"01",0]
[null,null,null,null,null,null,null,0,0,0,0,0,0,0,null,null,null,null,null,null,null,0,null,41104002,"DESPESAS DE VIAGEM ( DIARIA )",0,0,0,"01",0]
[null,null,null,null,null,null,null,0,0,0,0,0,0,0,null,null,null,null,null,null,null,0,null,41104002,"DESPESAS DE VIAGEM ( DIARIA )",0,0,0,"01",0]
[null,null,null,null,null,null,null,0,0,0,0,0,0,0,null,null,null,null,null,null,null,0,null,41104002,"DESPESAS DE VIAGEM ( DIARIA )",0,0,0,"01",0]
[null,null,null,null,null,null,null,{"$f":"G119","v":0},0,0,0,0,0,0,null,null,null,null,null,null,null,0,null,41104002,"DESPESAS DE VIAGEM ( DIARIA )",0,0,0,"01",0]
[null,null,null,null,null,null,null,0,0,0,0,0,0,0,null,null,null,null,null,null,null,0,null,41104002,"DESPESAS DE VIAGEM ( DIARIA )",0,0,0,"01",0]
[null,null,null,null,null,null,null,0,0,0,0,0,0,0,null,null,null,null,null,null,null,0,null,41104002,"DESPESAS DE VIAGEM ( DIARIA )",0,0,0,"01",0]
[null,null,null,null,null,null,null,0,0,0,0,0,0,0,null,null,null,null,null,null,null,0,null,41104002,"DESPESAS DE VIAGEM ( DIARIA )",0,0,0,"01",0]
[null,null,null,null,null,null,null,0,0,0,0,0,0,0,null,null,null,null,null,null,null,0,null,41104002,"DESPESAS DE VIAGEM ( DIARIA )",0,0,0,"01",0]
[null,null,null,null,null,null,null,0,0,0,0,0,0,0,null,null,null,null,null,null,null,0,null,41104002,"DESPESAS DE VIAGEM ( DIARIA )",0,0,0,"01",0]
[null,null,null,null,null,null,null,0,0,0,0,0,0,0,null,null,null,null,null,null,null,0,null,41104002,"DESPESAS DE VIAGEM ( DIARIA )",0,0,0,"01",0]
[null,null,null,null,null,null,null,0,0,0,0,0,0,0,null,null,null,null,null,null,null,0,null,41104002,"DESPESAS DE VIAGEM ( DIARIA )",0,0,0,"01",0]
[null,null,null,null,null,null,null,0,0,0,0,0,0,0,null,null,null,null,null,null,null,0,null,41104002,"DESPESAS DE VIAGEM ( DIARIA )",0,0,0,"01",0]
[null,null,null,null,null,null,null,0,0,0,0,0,0,0,null,null,null,null,null,null,null,0,null,41104002,"DESPESAS DE VIAGEM ( DIARIA )",0,0,0,"01",0]
[null,null,null,null,null,null,null,0,0,0,0,0,0,0,null,null,null,null,null,null,null,0,null,41104002,"DESPESAS DE VIAGEM ( DIARIA )",0,0,0,"01",0]
[null,null,null,null,null,null,null,0,0,0,0,0,0,0,null,null,null,null,null,null,null,0,null,41104002,"DESPESAS DE VIAGEM ( DIARIA )",0,0,0,"01",0]
[null,null,null,null,null,null,null,0,0,0,0,0,0,0,null,null,null,null,null,null,null,0,null,41104002,"DESPESAS DE VIAGEM ( DIARIA )",0,0,0,"01",0]
[null,null,null,null,null,null,null,0,0,0,0,0,0,0,null,null,null,null,null,null,null,0,null,41104002,"DESPESAS DE VIAGEM ( DIARIA )",0,0,0,"01",0]
[null,null,null,null,null,null,null,0,0,0,0,0,0,0,null,null,null,null,null,null,null,0,null,41104002,"DESPESAS DE VIAGEM ( DIARIA )",0,0,0,"01",0]
[null,null,null,null,null,null,null,0,0,0,0,0,0,{"$f":"SUM(G134:M134)","v":0},null,null,null,null,null,null,null,0,null,41104002,"DESPESAS DE VIAGEM ( DIARIA )",0,0,0,"01",0]
[null,null,null,null,null,null,null,{"$f":"G135","v":0},0,0,0,0,0,0,null,null,null,null,null,null,null,0,null,41104002,"DESPESAS DE VIAGEM ( DIARIA )",0,0,0,"01",0]
[null,null,null,null,null,null,null,0,0,0,0,0,0,0,null,null,null,null,null,null,null,0,null,41104002,"DESPESAS DE VIAGEM ( DIARIA )",0,0,0,"01",0]
[null,null,null,null,null,null,null,0,0,0,0,0,0,0,null,null,null,null,null,null,null,0,null,41104002,"DESPESAS DE VIAGEM ( DIARIA )",0,0,0,"01",0]
[null,null,null,null,null,null,null,0,0,0,0,0,0,0,null,null,null,null,null,null,null,0,null,41104002,"DESPESAS DE VIAGEM ( DIARIA )",0,0,0,"01",0]
[null,null,null,null,null,null,null,0,0,0,0,0,0,0,null,null,null,null,null,null,null,{"$f":"E139","v":0},null,41104002,"DESPESAS DE VIAGEM ( DIARIA )",{"$f":"N139","v":0},{"$f":"D139","v":0},{"$f":"C139","v":0},"01",{"$f":"O139","v":0}]
[null,null,null,null,null,null,null,0,0,0,0,0,0,0,null,null,null,null,null,null,null,0,null,41104002,"DESPESAS DE VIAGEM ( DIARIA )",0,0,0,"01",0]
[null,null,null,null,null,null,null,0,0,0,0,0,0,0,null,null,null,null,null,null,null,0,null,41104002,"DESPESAS DE VIAGEM ( DIARIA )",0,0,0,"01",0]
[null,null,null,null,null,null,null,0,0,0,0,0,0,0,null,null,null,null,null,null,null,0,null,41104002,"DESPESAS DE VIAGEM ( DIARIA )",0,0,0,"01",0]
[null,null,null,null,null,null,null,0,0,0,0,0,0,0,null,null,null,null,null,null,null,0,null,41104002,"DESPESAS DE VIAGEM ( DIARIA )",0,0,0,"01",0]
[null,null,null,null,null,null,null,0,0,0,0,0,0,0,null,null,null,null,null,null,null,0,null,41104002,"DESPESAS DE VIAGEM ( DIARIA )",0,0,0,"01",0]
[null,null,null,null,null,null,null,0,0,0,0,0,0,0,null,null,null,null,null,null,null,0,null,41104002,"DESPESAS DE VIAGEM ( DIARIA )",0,0,0,"01",0]
[null,null,null,null,null,null,null,0,0,0,0,0,0,0,null,null,null,null,null,null,null,0,null,41104002,"DESPESAS DE VIAGEM ( DIARIA )",0,0,0,"01",0]
[null,null,null,null,null,null,null,0,0,0,0,0,0,{"$f":"SUM(G147:M147)","v":0},null,null,null,null,null,null,null,0,null,41104002,"DESPESAS DE VIAGEM ( DIARIA )",0,0,0,"01",0]
[null,null,null,null,null,null,null,0,0,0,0,0,0,{"$f":"SUM(G148:M148)","v":0},null,null,null,null,null,null,null,0,null,41104002,"DESPESAS DE VIAGEM ( DIARIA )",0,0,0,"01",0]
[null,null,null,null,null,null,null,0,0,0,0,0,0,0,null,null,null,null,null,null,null,0,null,41104002,"DESPESAS DE VIAGEM ( DIARIA )",0,0,0,"01",0]
[null,null,null,null,null,null,null,0,0,0,0,0,0,0,null,null,null,null,null,null,null,0,null,41104002,"DESPESAS DE VIAGEM ( DIARIA )",0,0,0,"01",0]
[null,null,null,null,null,null,null,{"$f":"G151","v":0},0,0,0,0,0,{"$f":"SUM(G151:M151)","v":0},null,null,null,null,null,null,null,0,null,41104002,"DESPESAS DE VIAGEM ( DIARIA )",0,0,0,"01",0]
[null,null,null,null,null,null,null,0,0,0,0,0,0,0,null,null,null,null,null,null,null,0,null,41104002,"DESPESAS DE VIAGEM ( DIARIA )",0,0,0,"01",0]
[null,null,null,null,null,null,null,0,0,0,0,0,0,0,null,null,null,null,null,null,null,0,null,41104002,"DESPESAS DE VIAGEM ( DIARIA )",0,0,0,"01",0]
[null,null,null,null,null,null,null,0,0,0,0,0,0,0,null,null,null,null,null,null,null,0,null,41104002,"DESPESAS DE VIAGEM ( DIARIA )",0,0,0,"01",0]
[null,null,null,null,null,null,null,0,0,0,0,0,0,0,null,null,null,null,null,null,null,0,null,41104002,"DESPESAS DE VIAGEM ( DIARIA )",0,0,0,"01",0]
[null,null,null,null,null,null,null,0,0,0,0,0,0,0,null,null,null,null,null,null,null,0,null,41104002,"DESPESAS DE VIAGEM ( DIARIA )",0,0,0,"01",0]
[null,null,null,null,null,null,null,0,0,0,0,0,0,0,null,null,null,null,null,null,null,0,null,41104002,"DESPESAS DE VIAGEM ( DIARIA )",0,0,0,"01",0]
[null,null,null,null,null,null,null,0,0,0,0,0,0,0,null,null,null,null,null,null,null,0,null,41104002,"DESPESAS DE VIAGEM ( DIARIA )",0,0,0,"01",0]
[null,null,null,null,null,null,null,0,0,0,0,0,0,0,null,null,null,null,null,null,null,0,null,41104002,"DESPESAS DE VIAGEM ( DIARIA )",0,0,0,"01",0]
[null,null,null,null,null,null,null,0,0,0,0,0,0,0,null,null,null,null,null,null,null,0,null,41104002,"DESPESAS DE VIAGEM ( DIARIA )",0,0,0,"01",0]
[null,null,null,null,null,null,null,0,0,0,0,0,0,0,null,null,null,null,null,null,null,0,null,41104002,"DESPESAS DE VIAGEM ( DIARIA )",0,0,0,"01",0]
[null,null,null,null,null,null,null,0,0,0,0,0,0,0,null,null,null,null,null,null,null,0,null,41104002,"DESPESAS DE VIAGEM ( DIARIA )",0,0,0,"01",0]
[null,null,null,null,null,null,null,0,0,0,0,0,0,0,null,null,null,null,null,null,null,0,null,41104002,"DESPESAS DE VIAGEM ( DIARIA )",0,0,0,"01",0]
[null,null,null,null,null,null,null,0,0,0,0,0,0,0,null,null,null,null,null,null,null,0,null,41104002,"DESPESAS DE VIAGEM ( DIARIA )",0,0,0,"01",0]
[null,null,null,null,null,null,null,0,0,0,0,0,0,0,null,null,null,null,null,null,null,0,null,41104002,"DESPESAS DE VIAGEM ( DIARIA )",0,0,0,"01",0]
[null,null,null,null,null,null,null,0,0,0,0,0,0,0,null,null,null,null,null,null,null,0,null,41104002,"DESPESAS DE VIAGEM ( DIARIA )",0,0,0,"01",0]
[null,null,null,null,null,null,null,{"$f":"G167","v":0},0,0,0,0,0,{"$f":"SUM(G167:M167)","v":0},null,null,null,null,null,null,null,0,null,41104002,"DESPESAS DE VIAGEM ( DIARIA )",0,0,0,"01",0]
[null,null,null,null,null,null,null,0,0,0,0,0,0,0,null,null,null,null,null,null,null,0,null,41104002,"DESPESAS DE VIAGEM ( DIARIA )",0,0,0,"01",0]
[null,null,null,null,null,null,null,0,0,0,0,0,0,0,null,null,null,null,null,null,null,0,null,41104002,"DESPESAS DE VIAGEM ( DIARIA )",0,0,0,"01",0]
[null,null,null,null,null,null,null,0,0,0,0,0,0,0,null,null,null,null,null,null,null,0,null,41104002,"DESPESAS DE VIAGEM ( DIARIA )",0,0,0,"01",0]
[null,null,null,null,null,null,null,0,0,0,0,0,0,0,null,null,null,null,null,null,null,0,null,41104002,"DESPESAS DE VIAGEM ( DIARIA )",0,0,0,"01",0]
[null,null,null,null,null,null,null,0,0,0,0,0,0,0,null,null,null,null,null,null,null,0,null,41104002,"DESPESAS DE VIAGEM ( DIARIA )",0,0,0,"01",0]
[null,null,null,null,null,null,null,0,0,0,0,0,0,0,null,null,null,null,null,null,null,0,null,41104002,"DESPESAS DE VIAGEM ( DIARIA )",0,0,0,"01",0]
[null,null,null,null,null,null,null,0,0,0,0,0,0,0,null,null,null,null,null,null,null,0,null,41104002,"DESPESAS DE VIAGEM ( DIARIA )",0,0,0,"01",0]
[null,null,null,null,null,null,null,0,0,0,0,0,0,0,null,null,null,null,null,null,null,0,null,41104002,"DESPESAS DE VIAGEM ( DIARIA )",0,0,0,"01",0]
[null,null,null,null,null,null,null,0,0,0,0,0,0,0,null,null,null,null,null,null,null,0,null,41104002,"DESPESAS DE VIAGEM ( DIARIA )",0,0,0,"01",0]
[null,null,null,null,null,null,null,0,0,0,0,0,0,0,null,null,null,null,null,null,null,0,null,41104002,"DESPESAS DE VIAGEM ( DIARIA )",0,0,0,"01",0]
[null,null,null,null,null,null,null,0,0,0,0,0,0,0,null,null,null,null,null,null,null,0,null,41104002,"DESPESAS DE VIAGEM ( DIARIA )",0,0,0,"01",0]
[null,null,null,null,null,null,null,null,null,null,null,null,null,null,null,null,null,null,null,null,null,0,null,41104002,"DESPESAS DE VIAGEM ( DIARIA )",0,0,0,"01",0]
[null,null,null,null,null,null,null,null,null,null,null,null,null,null,null,null,null,null,null,null,null,0,null,41104002,"DESPESAS DE VIAGEM ( DIARIA )",0,0,0,"01",0]
[null,null,null,null,null,null,null,null,null,null,null,null,null,null,null,null,null,null,null,null,null,0,null,41104002,"DESPESAS DE VIAGEM ( DIARIA )",0,0,0,"01",0]
[null,null,null,null,null,null,null,null,null,null,null,null,null,null,null,null,null,null,null,null,null,0,null,41104002,"DESPESAS DE VIAGEM ( DIARIA )",0,0,0,"01",0]
[null,null,null,null,null,null,null,null,null,null,null,null,null,null,null,null,null,null,null,null,null,0,null,41104002,"DESPESAS DE VIAGEM ( DIARIA )",0,0,0,"01",0]
[null,null,null,null,null,null,null,null,null,null,null,null,null,null,null,null,null,null,null,null,null,0,null,41104002,"DESPESAS DE VIAGEM ( DIARIA )",0,0,0,"01",0]
[null,null,null,null,null,null,null,null,null,null,null,null,null,null,null,null,null,null,null,null,null,0,null,41104002,"DESPESAS DE VIAGEM ( DIARIA )",0,0,0,"01",0]
[null,null,null,null,null,null,null,null,null,null,null,null,null,null,null,null,null,null,null,null,null,0,null,41104002,"DESPESAS DE VIAGEM ( DIARIA )",0,0,0,"01",0]